Cogmind - Beta 13 @@@ ROGUE MODE // 2024.04.03 @ 19:37:07 Player: Tuks Result: Destroyed by Y-45 Defender with Heavy Assault Rifle Performance ------------- Evolutions (2) 1000 Regions Visited (4) 800 Robots Destroyed (38) 190 Value Destroyed (1051) 1051 Prototype IDs (2) 40 Alien Tech Used (0) 0 Bonus (0) 0 TOTAL SCORE: 3081 Bonus ------- None Cogmind --------- Core Integrity 0/550 Matter 300/300 Energy 100/100 System Corruption 0% Temperature Cool (0) Movement Core (350) Ox6 Location -8/Materials Parts ------- > --- POWER (1) -------- (None) > --- PROPULSION (4) --- (None) > --- UTILITY (4) ------ Large Storage Unit Improved Signal Interpreter > --- WEAPON (2) ------- (None) > --- INVENTORY (15) --- Seismic Detector Core Shielding Heavy EM Pulse Gun Datajack Welding Torch Peak State ------------ > --- POWER ------------ Light Nuclear Core > --- PROPULSION ------- Aluminum Leg Aluminum Leg Improved Aluminum Leg > --- UTILITY ---------- Large Storage Unit Targeting Computer Hacking Suite > --- WEAPON ----------- Heavy EM Pulse Gun Advanced Beam Cannon > --- INVENTORY -------- Light Ion Engine Seismic Detector Core Shielding Heavy EM Pulse Gun Datajack Welding Torch [Rating: 17] Favorites ----------- Power Light Ion Engine Engine Light Ion Engine Power Core Light Nuclear Core Propulsion Wheel Treads Advanced Treads Leg Aluminum Leg Wheel Wheel Utility Hacking Suite Device Seismic Detector Storage Large Storage Unit Processor Targeting Computer Hackware Hacking Suite Weapon Heavy EM Pulse Gun Energy Gun Heavy EM Pulse Gun Energy Cannon Advanced Beam Cannon Ballistic Gun Assault Rifle Ballistic Cannon Light Cannon Launcher Grenade Launcher Special Melee Weapon Datajack Build | -11 -10 -9 -9 -8 ------- Run | Yrd Mat Mat Min Mat Slots Evolved 4 | . . 2 . 2 Power . | . . . . . Propulsion 2 | . . 1 . 1 Utility 2 | . . 1 . 1 Weapon . | . . . . . Parts Attached 34 | 5 11 15 . 3 Power 4 | 1 1 2 . . Engine 3 | 1 1 1 . . Core 1 | . . 1 . . Reactor . | . . . . . Propulsion 8 | 2 . 5 . 1 Treads 1 | . . . . 1 Leg 5 | . . 5 . . Wheel 2 | 2 . . . . Hover . | . . . . . Flight . | . . . . . Utility 10 | . 6 3 . 1 Device 2 | . 2 . . . Storage 5 | . 3 2 . . Processor 2 | . . 1 . 1 Hackware 1 | . 1 . . . Protection . | . . . . . Artifact . | . . . . . Weapon 12 | 2 4 5 . 1 Energy Gun 6 | 1 1 3 . 1 Energy Cannon 1 | . . 1 . . Ballistic Gun 1 | 1 . . . . Ballistic Cannon 1 | . 1 . . . Launcher 2 | . 1 1 . . Special Weapon . | . . . . . Impact Weapon . | . . . . . Slashing Weapon . | . . . . . Piercing Weapon . | . . . . . Special Melee Weapon 1 | . 1 . . . Unidentified Prototypes 2 | . . 1 . 1 Corrupted Parts 1 | . . 1 . . System Corruption 1 | . . 1 . . Parts Lost 12 | . . 2 2 8 Power 1 | . . . 1 . Propulsion 5 | . . 1 . 4 Utility 2 | . . . . 2 Weapon 4 | . . 1 1 2 Highest Loss Streak 4 | . . 2 2 4 To Critical Strikes . | . . . . . Average Slot Usage (%) 78 | . 95 79 80 51 Engine 8 | . 14 9 . . Leg 10 | . . 14 33 9 Wheel 12 | . 28 8 . . Device 3 | . 10 . . . Storage 10 | . 9 11 11 9 Processor 5 | . . 2 11 15 Hackware 9 | . 6 11 11 9 Energy Gun 7 | . 2 14 1 2 Energy Cannon 3 | . . 5 11 3 Ballistic Cannon 2 | . 8 . . . Launcher 2 | . 8 . . . Naked Turns . | . . . . . Heaviest Build 32 | 7 15 32 24 24 Greatest Support 33 | 20 20 33 33 33 Greatest Overweight (x) 7 | . . 1 . 7 Average Overweight (x) . | . . . . 1 Largest Inventory Capacity 15 | 5 15 15 15 15 Average Capacity 10 | 5 7 11 15 15 Most Carried 9 | 2 6 9 5 6 Average Carried 4 | . 3 5 5 5 Final Capacity 15 | 5 8 15 15 15 Final Carried 5 | . 5 5 5 5 Class Distribution -------------------- 100% | Mutant Dominant Class ---------------- Mutant | -10/Materials Mutant | -9/Materials Mutant | -9/Mines Mutant | -8/Materials Resources | -11 -10 -9 -9 -8 ----------- Run | Yrd Mat Mat Min Mat Matter Collected 693 | 268 222 188 . 15 Remotely . | . . . . . Salvage Created 1113 | 50 146 481 42 394 Parts 71 | 2 15 35 4 15 Haulers Intercepted . | . . . . . Recyclers Shooed 1 | . . . 1 . Parts Field Recycled . | . . . . . Retrieved Matter . | . . . . . Parts Self-Destructed . | . . . . . Prevented . | . . . . . Kills | -11 -10 -9 -9 -8 ------- Run | Yrd Mat Mat Min Mat Combat Hostiles Destroyed 31 | 1 8 12 3 7 Guns 11 | 1 . 7 . 3 Cannons 14 | . 6 3 3 2 AOE 6 | . 2 2 . 2 Classes Destroyed 8 | 1 3 2 . 2 Worker 1 | . . 1 . . Recycler 1 | . . . . 1 Operator 1 | . 1 . . . Watcher 4 | . 1 1 . 2 Swarmer 14 | . 6 4 3 1 Grunt 13 | 1 2 5 . 5 Sentry 3 | . . 3 . . Hunter 1 | . . . . 1 Best Kill Streak 5 | 1 4 4 3 5 Combat Bots Only 4 | 1 3 4 3 3 Max Kills in Single Turn 3 | 1 1 2 1 3 Gunslinging . | . . . . . Exploded 2 | . 1 1 . 2 Melee . | . . . . . Uniques/NPCs Destroyed . | . . . . . Combat | -11 -10 -9 -9 -8 -------- Run | Yrd Mat Mat Min Mat Hostile Shots Fired 201 | 8 35 53 16 89 Missed 62 | 1 8 20 2 31 Damage Taken 2036 | 80 222 390 107 1237 Core 669 | 34 16 67 . 552 Absorbed by Shields . | . . . . . Core Remaining (%) 83 | 86 80 . 83 . Volleys Fired 108 | 6 24 26 8 44 Largest 2 | 2 2 2 2 1 Hottest 113 | 60 65 113 113 68 Shots Fired 142 | 12 34 42 10 44 Gun 71 | 12 8 29 2 20 Cannon 66 | . 22 12 8 24 Launcher 5 | . 4 1 . . Special . | . . . . . Kinetic 36 | 6 30 . . . Thermal 64 | . . 12 8 44 Explosive 5 | . 4 1 . . Electromagnetic 37 | 6 . 29 2 . Robot Hit Streak 14 | 2 4 8 5 14 Robot Miss Streak 3 | 2 3 2 3 2 Penetration Max . | . . . . . Secondary Targets . | . . . . . Shots Hit Robots 93 | 7 15 29 6 36 Core Hits 50 | 2 13 16 3 16 Critical Kills . | . . . . . Critical Parts Destroyed . | . . . . . Critical Strikes 4 | . 1 1 . 2 Burn 2 | . . . . 2 Blast 1 | . 1 . . . Corrupt 1 | . . 1 . . Melee Attacks 2 | . 2 . . . Impact . | . . . . . Slashing . | . . . . . Piercing . | . . . . . Sneak Attacks . | . . . . . Combat Hostiles . | . . . . . Follow-up Attacks . | . . . . . Damage Inflicted 2376 | 87 430 708 133 1018 Guns 754 | 87 24 295 26 322 Cannons 794 | . 199 143 101 351 Explosions 822 | . 207 270 . 345 Melee . | . . . . . Ramming 6 | . . . 6 . Kinetic 272 | 49 223 . . . Thermal 1031 | . . 257 101 673 Explosive 708 | . 207 156 . 345 Electromagnetic 359 | 38 . 295 26 . Impact . | . . . . . Slashing . | . . . . . Piercing . | . . . . . Highest Corruption 1 | . . 1 1 . Average Corruption 1 | . . 1 1 . Corruption Purged . | . . . . . Corruption Blocked . | . . . . . Effects 3 | . . 2 1 . Message Errors 1 | . . 1 . . Energy Discharges 1 | . . . 1 . Data Loss (minor) 1 | . . 1 . . Overload Shots . | . . . . . Overflow Damage 130 | . . . . 130 Projectiles 2 | . . . . 2 Explosions 128 | . . . . 128 Melee . | . . . . . Knockbacks 2 | . 2 . . . Impact . | . . . . . Kinetic 2 | . 2 . . . Secondary . | . . . . . Self-Inflicted Damage 387 | . . 28 . 359 Shots 5 | . . 1 . 4 Rammed . | . . . . . Targets Rammed 1 | . . . 1 . Kicked 1 | . . . 1 . Crushed . | . . . . . Highest Temperature 231 | 42 8 162 231 182 Average Temperature 71 | 24 4 68 125 74 Received Heat Transfer 561 | 42 18 123 . 378 Siege Activations . | . . . . . Robots Corrupted . | . . . . . Combat Hostiles . | . . . . . Parts Fried 3 | . . 3 . . Impact Corruptions . | . . . . . Robots Melted . | . . . . . Combat Hostiles . | . . . . . Parts Melted 5 | . . . 2 3 Heat Transferred 2074 | . . 409 185 1480 Parts Sabotaged . | . . . . . Parts Stolen . | . . . . . Parts Stripped . | . . . . . Power Chain Reactions 2 | . . 2 . . Alert | -11 -10 -9 -9 -8 ------- Run | Yrd Mat Mat Min Mat Peak Influence 277 | 20 277 237 157 257 Initial 92 | . 13 32 92 61 Average 156 | 1 191 155 152 146 Maximum Alert Level 1 | . 1 1 . 1 Low Security (%) 74 | 100 48 87 100 76 Level 1 25 | . 51 12 . 23 Level 2 . | . . . . . Level 3 . | . . . . . Level 4 . | . . . . . Level 5 . | . . . . . High Security . | . . . . . Max Security . | . . . . . Squads Dispatched 5 | . . 2 . 3 Investigation 3 | . . 1 . 2 Extermination . | . . . . . Reinforcement 2 | . . 1 . 1 Assault . | . . . . . Garrison . | . . . . . Intercept . | . . . . . Searches Triggered . | . . . . . Construction Impeded . | . . . . . Haulers Reinforced . | . . . . . Active Scanning Responses . | . . . . . Cargo Convoy Interrupts . | . . . . . Stealth | -11 -10 -9 -9 -8 --------- Run | Yrd Mat Mat Min Mat Distress Signals 5 | . . 3 . 2 Communications Jammed . | . . . . . Distress Signals . | . . . . . Times Spotted 46 | 1 12 18 3 12 Peak Tracking Total 5 | 1 3 5 3 4 Tactical Retreats 1 | . . 1 . . Traps | -11 -10 -9 -9 -8 ------- Run | Yrd Mat Mat Min Mat Traps Triggered 1 | . . 1 . . Indirectly . | . . . . . Trap Hack Attempts . | . . . . . Triggered . | . . . . . Disarmed . | . . . . . Reprogrammed . | . . . . . Reused . | . . . . . Traps Extracted . | . . . . . Installed . | . . . . . Triggered . | . . . . . Machines | -11 -10 -9 -9 -8 ---------- Run | Yrd Mat Mat Min Mat Machines Disabled 8 | . 1 1 . 6 Max in Single Turn 3 | . 1 1 . 3 Machines Repaired . | . . . . . Machines Dismantled . | . . . . . Machines Sabotaged . | . . . . . Overloaded Fab Kills . | . . . . . Hacking | -11 -10 -9 -9 -8 --------- Run | Yrd Mat Mat Min Mat Machines Accessed 7 | . 2 1 . 4 Terminals 6 | . 1 1 . 4 Fabricators . | . . . . . Repair Stations . | . . . . . Recycling Units 1 | . 1 . . . Scanalyzers . | . . . . . Garrison Access . | . . . . . Total Hacks 26 | . 8 2 . 16 Successful 16 | . 6 . . 10 Failed 10 | . 2 2 . 6 Catastrophic 1 | . . . . 1 Database Lockouts . | . . . . . Manual . | . . . . . Terminals 20 | . 2 2 . 16 Fabricators . | . . . . . Repair Stations . | . . . . . Recycling Units 6 | . 6 . . . Scanalyzers . | . . . . . Garrison Access . | . . . . . Terminal Hacks 10 | . . . . 10 Record 3 | . . . . 3 Branch Access Points 1 | . . . . 1 Unreport Threat 1 | . . . . 1 Locate Traps 1 | . . . . 1 Dispatch Records 1 | . . . . 1 Security Status 1 | . . . . 1 Hauler Manifests 1 | . . . . 1 Zone Layout 1 | . . . . 1 Fabricator Hacks . | . . . . . Repair Station Hacks . | . . . . . Recycling Unit Hacks 6 | . 6 . . . Recycle Component 3 | . 3 . . . Process 1 | . 1 . . . Report Inventory 1 | . 1 . . . Retrieve Components 1 | . 1 . . . Scanalyzer . | . . . . . Garrison Access Hacks . | . . . . . Unauthorized Hacks . | . . . . . Terminals . | . . . . . Fabricators . | . . . . . Repair Stations . | . . . . . Recycling Units . | . . . . . Scanalyzers . | . . . . . Garrison Access . | . . . . . Data Cores Recovered 1 | . 1 . . . Used . | . . . . . Hacking Detections 5 | . 2 1 . 2 Full Trace Events 4 | . 1 1 . 2 Feedback Events . | . . . . . Feedback Blocked . | . . . . . Robot Schematics Acquired . | . . . . . Robots Built . | . . . . . Authchips . | . . . . . Time . | . . . . . Total Robot Build Rating . | . . . . . Part Schematics Acquired . | . . . . . Parts Built . | . . . . . Authchips . | . . . . . Time . | . . . . . Total Part Build Rating . | . . . . . Parts Repaired . | . . . . . Time . | . . . . . Parts Recycled 3 | . 3 . . . Recycled Matter 46 | . 46 . . . Retrieved Matter . | . . . . . Retrieved Components . | . . . . . Parts Scanalyzed . | . . . . . Part Schematics Acquired . | . . . . . Parts Damaged . | . . . . . Bothacking | -11 -10 -9 -9 -8 ------------ Run | Yrd Mat Mat Min Mat Used RIF Installer . | . . . . . Robots Hacked 1 | . 1 . . . Non-combat 1 | . 1 . . . Combat . | . . . . . Robot Hacks Applied 1 | . 1 . . . parse_system 1 | . 1 . . . Relay Couplers Released . | . . . . . Fabnet Peak Effective % . | . . . . . Robots Rewired . | . . . . . Allies Hacked . | . . . . . Hacks Repelled . | . . . . . Allies | -11 -10 -9 -9 -8 -------- Run | Yrd Mat Mat Min Mat Total Allies . | . . . . . Largest Group . | . . . . . Highest-Rated Group . | . . . . . Highest-Rated Ally . | . . . . . Total Orders . | . . . . . Ally Attacks . | . . . . . Total Damage . | . . . . . Kills . | . . . . . Allies Corrupted . | . . . . . Allies Melted . | . . . . . Intel | -11 -10 -9 -9 -8 ------- Run | Yrd Mat Mat Min Mat Robot Analysis Total . | . . . . . Derelict Logs Recovered . | . . . . . Drone Launches . | . . . . . Drone Recoveries . | . . . . . Exploration | -11 -10 -9 -9 -8 ------------- Run | Yrd Mat Mat Min Mat Turns Passed 1440 | 67 427 543 93 310 Spaces Moved 930 | 56 368 326 62 118 Core 35 | 17 . . . 18 Treads 38 | . . . . 38 Legs 351 | . . 227 62 62 Wheels 506 | 39 368 99 . . Hover . | . . . . . Flight . | . . . . . Fastest Speed 50 | 50 80 80 120 120 Average Speed 111 | 70 80 133 120 167 Slowest Speed 400 | 80 80 190 120 400 Overloaded Moves . | . . . . . Propulsion Burnouts . | . . . . . Robots Hopped . | . . . . . Cave-ins Triggered . | . . . . . Exploration Rate (%) 25 | 8 60 24 16 18 Regions Visited 4 Branch Regions 1 Pre-discovered Areas . | . . . . . Known Exits Taken . | . . . . . Unknown Exits Taken 4 | 1 1 1 1 . Scrap Searched . | . . . . . Spaces Dug . | . . . . . Terrain Destroyed 69 | . 35 15 . 19 Melee . | . . . . . Projectile . | . . . . . AOE 69 | . 35 15 . 19 Terrain Rammed . | . . . . . Walls Destroyed . | . . . . . Machines Disabled . | . . . . . Actions | -11 -10 -9 -9 -8 --------- Run | Yrd Mat Mat Min Mat Total 1181 | 71 463 391 70 186 Wait 68 | . 44 6 . 18 Move 926 | 55 367 325 61 118 Hop . | . . . . . Pick Up 31 | 5 11 12 . 3 Fast Attach . | . . . . . Attach 16 | 5 3 5 . 3 Detach 2 | . 2 . . . Swap 18 | . 8 10 . . Drop 9 | . 2 7 . . Fire 108 | 6 24 26 8 44 Melee 2 | . 2 . . . Ram . | . . . . . Kick 1 | . . . 1 . Crush . | . . . . . Escape Stasis . | . . . . . Rewire . | . . . . . Trap . | . . . . . Miscellaneous . | . . . . . Route ------- -11/Scrapyard -10/Materials -9/Materials -9/Mines -8/Materials History --------- Turn | Location | Event 2 | -11/Scrapyard | Met Revision 17 42 | -11/Scrapyard | Discovered new exit (range 8) 68 | -11/Scrapyard | Entered Materials 272 | -10/Materials | Discovered new exit (range 13) 300 | -10/Materials | Build established: Mutant 495 | -10/Materials | Entered another Materials area 495 | -9/Materials | Evolved 2 slots: Propulsion x1, Utility x1 593 | -9/Materials | Discovered new exit (range 16) 1038 | -9/Materials | Entered Mines 1092 | -9/Mines | Discovered new exit (range 7) 1126 | -9/Mines | Met a Derelict bent on vengeance 1131 | -9/Mines | Entered Materials 1131 | -8/Materials | Evolved 2 slots: Propulsion x1, Utility x1 1262 | -8/Materials | Core integrity fell below 50% 1289 | -8/Materials | Lost 4 parts (3n1w) 1425 | -8/Materials | Core integrity fell below 20% 1441 | -8/Materials | Destroyed by Y-45 Defender with Heavy Assault Rifle Last Messages --------------- K-01 Serf cleans the Nuclear Reactor. Adv. Treads destroyed. G-50 Soldier suffers critical hit (Burn). K-01 Serf collects debris. Lgt. Angular Momentum Engine melted. G-50 Soldier destroyed. K-01 Serf collects debris. Acquired 5 matter. K-01 Serf collects debris. R-06 Scavenger collects Particle Gun. K-01 Serf collects debris. R-06 Scavenger collects Particle Gun. K-01 Serf collects debris. W-25 Informer sends out distress signal. ALERT: Hostiles spotted, dispatching reinforcements to Terminal M008. Prc. Beam Rifle destroyed. K-01 Serf collects debris. Targeting Computer destroyed. Hacking Suite destroyed. Map ----- +----------------------------------------------------+ | | | | | ????????????????????????????????????????????????? | | ????????????????????????????????????????????????? | | ????????????????????????????????????????????????? | | ????????????????????????????????????????????????? | | ????????????????????????????????????????????????? | | ????????????????????????????????????????????????? | | ????????????????????????????????????????????????? | | ????????????????????????????????????????????????? | | ????????????????????????????????????????????????? | | ????????????????????????????????????????????????? | | ????????????????????????????????????????????????? | | ????????????????????????????????????????????????? | | ??????????????????#????????????????? ???????????? | | ??????????????????# ??????????????? ???????????? | | ??????????????????# ?##########+## ????????????? | | ??????????????????+ ?? Y ?????????????? | | ??????????????????# ?? Y ??????????????? | | ??????????????????# ??# #???????????????? | | ?????????????######+### [! #???????????????? | | ?????????????# # w[! #???????????????? | | ?????????????# """ # !! #???????????????? | | ?????????????# """ # #???????????????? | | ?????????????# """ # #???????????????? | | ?????????????# % ; @!!] #???????????????? | | ?????????????# """ %%# !! + ""??????????? | | ############?# "T # !! # = ????????? | | "T" #?# """ # #### ##?????" ????????? | | #?# # #???? #????????????????? | | % ######+##### #?????#????????????????? | | ^^ #??????????????????????? | | ############+##??????????????????????? | | ##???????????????????????????????????? | | #???????????????? ?????????????????? | | T######??????????# +????????????????? | | ##!!!!##?????????+ #????????????????? | | #! !#?????????# #????????????????? | | # #????###### #????????????????? | | # #?????# ## #????????????????? | | ####### " ## #????????????????? | | + T ## #????????????????? | | ####### " ## #????????????????? | | #####"T"#######%##?????# ## #????????????????? | | #########?????# #??????# ## #????????????????? | | ??????????##??#%#??????# ## #????????????????? | | ########### ##########+## #######??????????? | | #??????????? | | ?T #??????????? | | #??????????? | +----------------------------------------------------+ Best States ------------- Heat Dissipation 39 Energy Generation 14 Energy Capacity 160 Matter Stores 300 Matter Capacity 300 Sight Range 16 Terrain Scan Density 10 Evasion (%) 55 Targeting Accuracy 5 Recoil Reduction 1 Offensive Hacking 10 Item Schematics ----------------- None Robot Schematics ------------------ None Fabricated ------------ Nothing Alien Tech Used ----------------- None Achievements -------------- Everything Is Under Control Shopping List Challenges ------------ None Game ------ Seed ExplosiveXenonExoskeleton Manual? 0 Play Time 00:23:48 Cumulative 1.8 hours Start 2024.04.03 @ 19:13:07 End 2024.04.03 @ 19:37:07 Sessions 1 Manual Loads 0 Difficulty Rogue Special Mode None Game No. 3 Rogue 3 Adventurer 0 Explorer 0 Win Type - Total 0 Types 0/0/0/0/0/0/0/0/0 Lore% 1 Gallery% 6 Achievement% 6 Wizard Run 0 Options --------- Layout 1 ASCII 0 Keyboard 0 Movement Mouse Keybinds 0 Fullscreen 2 Font 24/Crisp Map View 50x35 Zoom Use 0% Tactical HUD 0 Map Filters NONE Filters NONE Steam 1 RUN: 9b0018b0-fce7-4e50-b986-cdadd7e248ed